[Event "Masters Tournament (MTO)"]
[Site "Biel, Switzerland"]
[Date "2026.07.14"]
[Round "2.12"]
[White "Lu, Miaoyi"]
[Black "Vihaan, Dumir"]
[Result "1-0"]
[TimeControl "100+30+30sec/move"]
[WhiteTitle "-"]
[BlackTitle "-"]
[WhiteFideId "8618020"]
[BlackFideId "25901010"]
[WhiteElo "2392"]
[BlackElo "2132"]

1. e4 {[%clk 01:39:26]} {[%emt 00:01:31]} d5 {[%clk 01:40:52]} {[%emt
00:00:08]} 2. exd5 {[%clk 01:39:51]} {[%emt 00:00:06]} Qxd5 {[%clk 01:41:16]}
{[%emt 00:00:06]} 3. Nc3 {[%clk 01:40:15]} {[%emt 00:00:06]} Qa5 {[%clk
01:41:39]} {[%emt 00:00:06]} 4. Nf3 {[%clk 01:39:43]} {[%emt 00:01:03]} Nf6
{[%clk 01:41:58]} {[%emt 00:00:10]} 5. h3 {[%clk 01:39:28]} {[%emt 00:00:45]}
a6 {[%clk 01:34:34]} {[%emt 00:07:54]} 6. a3 {[%clk 01:29:37]} {[%emt
00:10:23]} c5 {[%clk 01:16:03]} {[%emt 00:19:01]} 7. d4 {[%clk 01:25:23]}
{[%emt 00:04:44]} e6 {[%clk 01:11:00]} {[%emt 00:05:33]} 8. Bd3 {[%clk
01:20:03]} {[%emt 00:05:51]} Be7 {[%clk 01:04:30]} {[%emt 00:07:00]} 9. dxc5
{[%clk 01:16:33]} {[%emt 00:04:00]} Qxc5 {[%clk 01:04:28]} {[%emt 00:00:31]} 10.
Bf4 {[%clk 01:14:31]} {[%emt 00:02:33]} O-O {[%clk 00:53:02]} {[%emt 00:11:56]}
11. Qe2 {[%clk 01:14:50]} {[%emt 00:00:11]} Nc6 {[%clk 00:47:21]} {[%emt
00:06:11]} 12. O-O-O {[%emt 00:16:17]} Qa5 {[%clk 00:45:00]} 13. Bd2 {[%clk
00:58:23]} {[%emt 00:04:00]} Qc7 {[%clk 00:37:16]} {[%emt 00:08:13]} 14. g4
{[%clk 00:55:02]} {[%emt 00:03:53]} b5 {[%clk 00:33:36]} {[%emt 00:04:09]} 15.
g5 {[%clk 00:52:35]} {[%emt 00:02:57]} Nd7 {[%clk 00:32:27]} {[%emt 00:01:39]}
16. Ne4 {[%clk 00:39:24]} {[%emt 00:13:41]} Bb7 {[%clk 00:25:03]} {[%emt
00:07:53]} 17. Rhg1 {[%clk 00:32:06]} {[%emt 00:07:49]} Rfd8 {[%clk 00:14:56]}
{[%emt 00:10:37]} 18. Kb1 {[%clk 00:30:24]} {[%emt 00:02:12]} e5 {[%clk
00:09:26]} {[%emt 00:06:00]} 19. h4 {[%clk 00:28:02]} {[%emt 00:02:52]} Kh8
{[%clk 00:05:23]} {[%emt 00:04:33]} 20. h5 {[%clk 00:23:02]} {[%emt 00:05:31]}
g6 {[%clk 00:03:15]} {[%emt 00:02:38]} 21. Rh1 {[%clk 00:19:57]} {[%emt
00:03:34]} Kg7 {[%clk 00:02:30]} {[%emt 00:01:15]} 22. hxg6 {[%clk 00:18:07]}
{[%emt 00:02:19]} hxg6 {[%clk 00:02:58]} {[%emt 00:00:02]} 23. Rh6 {[%clk
00:18:35]} {[%emt 00:00:03]} Rh8 {[%clk 00:03:05]} {[%emt 00:00:22]} 24. Rdh1
{[%clk 00:18:22]} {[%emt 00:00:44]} Rag8 {[%clk 00:01:19]} {[%emt 00:02:16]} 25.
Bc3 {[%clk 00:13:55]} {[%emt 00:04:58]} b4 {[%clk 00:01:06]} {[%emt 00:00:43]}
26. axb4 {[%clk 00:14:08]} {[%emt 00:00:17]} Bxb4 {[%clk 00:01:09]} {[%emt
00:00:27]} 27. Qe1 {[%clk 00:13:34]} {[%emt 00:01:03]} Bxc3 {[%clk 00:00:58]}
{[%emt 00:00:41]} 28. Qxc3 {[%clk 00:10:13]} {[%emt 00:03:51]} Qa5 {[%clk
00:01:14]} {[%emt 00:00:14]} 29. Qb3 {[%clk 00:08:00]} {[%emt 00:02:44]} Nd8
{[%clk 00:01:36]} {[%emt 00:00:08]} 30. R1h4 {[%clk 00:02:24]} {[%emt
00:06:05]} Bd5 {[%clk 00:01:31]} {[%emt 00:00:35]} 31. c4 {[%clk 00:02:43]}
{[%emt 00:00:12]} Bxe4 {[%clk 00:01:24]} {[%emt 00:00:36]} 32. Bxe4 {[%clk
00:03:08]} {[%emt 00:00:05]} Ne6 {[%clk 00:01:40]} {[%emt 00:00:13]} 33. Qd1
{[%clk 00:02:53]} {[%emt 00:00:46]} Ndc5 {[%clk 00:00:53]} {[%emt 00:01:13]} 34.
Rh7+ {[%clk 00:03:02]} {[%emt 00:00:25]} Rxh7 {[%clk 00:01:14]} {[%emt
00:00:09]} 35. Rxh7+ {[%clk 00:03:31]} Kxh7 {[%clk 00:00:56]} {[%emt 00:00:48]}
36. Qh1+ {[%clk 00:03:59]} {[%emt 00:00:02]} Kg7 {[%clk 00:01:25]} {[%emt
00:00:01]} 37. Qh6# {[%clk 00:04:20]} {[%emt 00:00:09]} 1-0

[Event "Masters Tournament (MTO)"]
[Site "Biel, Switzerland"]
[Date "2026.07.14"]
[Round "2.13"]
[White "Dai, Wenzhi"]
[Black "Savitha, Shri B"]
[Result "0-1"]
[TimeControl "100+30+30sec/move"]
[WhiteTitle "-"]
[BlackTitle "-"]
[WhiteFideId "8608369"]
[BlackFideId "35061887"]
[WhiteElo "2126"]
[BlackElo "2368"]

1. e4 {[%clk 01:40:54]} {[%emt 00:00:02]} c5 {[%clk 01:37:38]} {[%emt
00:03:26]} 2. Nf3 {[%clk 01:41:14]} {[%emt 00:00:10]} d6 {[%clk 01:38:02]}
{[%emt 00:00:06]} 3. d4 {[%clk 01:41:37]} {[%emt 00:00:06]} cxd4 {[%clk
01:38:29]} {[%emt 00:00:04]} 4. Nxd4 {[%clk 01:42:01]} {[%emt 00:00:06]} Nf6
{[%clk 01:38:55]} {[%emt 00:00:04]} 5. Nc3 {[%clk 01:42:22]} {[%emt 00:00:08]}
Nc6 {[%clk 01:39:19]} {[%emt 00:00:07]} 6. f3 {[%clk 01:42:47]} {[%emt
00:00:05]} e5 {[%clk 01:39:35]} {[%emt 00:00:14]} 7. Nb3 {[%clk 01:43:11]}
{[%emt 00:00:06]} Be7 {[%clk 01:40:01]} {[%emt 00:00:05]} 8. Be3 {[%clk
01:43:32]} {[%emt 00:00:08]} O-O {[%clk 01:39:48]} {[%emt 00:00:43]} 9. Qd2
{[%clk 01:42:33]} {[%emt 00:01:29]} a5 {[%clk 01:40:10]} {[%emt 00:00:08]} 10.
a4 {[%clk 01:38:18]} {[%emt 00:04:45]} Nb4 {[%clk 01:37:41]} {[%emt 00:03:01]}
11. O-O-O {[%clk 01:35:28]} {[%emt 00:03:20]} Be6 {[%clk 01:34:47]} {[%emt
00:03:24]} 12. g4 {[%clk 01:28:04]} {[%emt 00:07:53]} Rc8 {[%clk 01:30:30]}
{[%emt 00:04:48]} 13. Kb1 {[%clk 01:26:24]} {[%emt 00:02:10]} Nd7 {[%clk
01:25:56]} {[%emt 00:05:04]} 14. Bd3 {[%clk 01:13:22]} {[%emt 00:13:31]} b6
{[%clk 01:03:06]} {[%emt 00:23:21]} 15. Bb5 {[%clk 00:52:30]} {[%emt 00:21:21]}
Qc7 {[%clk 00:57:56]} {[%emt 00:05:41]} 16. Qf2 {[%clk 00:38:39]} {[%emt
00:14:21]} Qb7 {[%clk 00:42:13]} {[%emt 00:16:12]} 17. Rd2 {[%clk 00:29:27]}
{[%emt 00:09:43]} Rb8 {[%clk 00:34:29]} {[%emt 00:08:15]} 18. Rhd1 {[%clk
00:27:02]} {[%emt 00:02:54]} Nc5 {[%clk 00:32:24]} {[%emt 00:02:34]} 19. Nxc5
{[%clk 00:23:32]} {[%emt 00:04:00]} bxc5 {[%clk 00:32:48]} {[%emt 00:03:09]} 20.
Nd5 {[%clk 00:23:28]} Nxd5 {[%clk 00:32:32]} 21. exd5 {[%clk 00:23:50]} Bd7
{[%clk 00:32:57]} 22. c4 {[%clk 00:23:45]} f5 {[%clk 00:33:01]} 23. Qg2 {[%clk
00:22:53]} {[%emt 00:00:54]} Be8 {[%clk 00:31:54]} {[%emt 00:01:38]} 24. f4
{[%clk 00:18:42]} {[%emt 00:04:42]} fxg4 {[%clk 00:22:05]} {[%emt 00:10:18]} 25.
fxe5 {[%clk 00:12:34]} {[%emt 00:06:38]} Rf3 {[%clk 00:22:12]} {[%emt
00:00:22]} 26. Bf2 {[%clk 00:11:38]} {[%emt 00:01:26]} Qc8 {[%clk 00:20:59]}
{[%emt 00:01:44]} 27. e6 {[%clk 00:08:40]} {[%emt 00:03:28]} h5 {[%clk
00:20:25]} {[%emt 00:01:03]} 28. Ka2 {[%clk 00:08:33]} {[%emt 00:00:38]} Bg6
{[%clk 00:19:58]} {[%emt 00:00:56]} 29. Bg3 {[%clk 00:07:22]} {[%emt 00:01:41]}
Qf8 {[%clk 00:19:50]} {[%emt 00:00:38]} 30. Be1 {[%clk 00:05:22]} {[%emt
00:02:31]} Qf4 {[%clk 00:18:24]} {[%emt 00:01:55]} 31. Rf2 {[%clk 00:03:26]}
{[%emt 00:02:26]} Be4 {[%clk 00:09:19]} {[%emt 00:09:36]} 32. Qg1 {[%clk
00:02:15]} {[%emt 00:01:41]} Qe3 {[%clk 00:09:09]} {[%emt 00:00:40]} 33. Ka1
{[%clk 00:01:14]} {[%emt 00:01:32]} Qb3 {[%clk 00:09:16]} {[%emt 00:00:22]} 0-1

[Event "Masters Tournament (MTO)"]
[Site "Biel, Switzerland"]
[Date "2026.07.14"]
[Round "2.14"]
[White "Cao, Qingfeng"]
[Black "Fogo Esquivel, Levi Kalani Alexander"]
[Result "1-0"]
[TimeControl "100+30+30sec/move"]
[WhiteTitle "-"]
[BlackTitle "-"]
[WhiteFideId "8627568"]
[BlackFideId "5183189"]
[WhiteElo "2365"]
[BlackElo "2125"]

1. Nf3 {[%clk 01:40:57]} {[%emt 00:00:01]} Nf6 {[%clk 01:34:49]} {[%emt
00:06:12]} 2. c4 {[%clk 01:40:37]} {[%emt 00:00:49]} e6 {[%clk 01:31:44]}
{[%emt 00:03:36]} 3. g3 {[%clk 01:39:43]} {[%emt 00:01:23]} d5 {[%clk
01:32:07]} {[%emt 00:00:10]} 4. Bg2 {[%clk 01:40:01]} {[%emt 00:00:12]} Be7
{[%clk 01:32:28]} {[%emt 00:00:09]} 5. d4 {[%clk 01:39:18]} {[%emt 00:01:12]}
O-O {[%clk 01:32:48]} {[%emt 00:00:10]} 6. O-O {[%clk 01:39:42]} {[%emt
00:00:07]} dxc4 {[%clk 01:33:14]} {[%emt 00:00:05]} 7. Qa4 {[%clk 01:33:32]}
{[%emt 00:06:39]} a6 {[%clk 01:28:02]} {[%emt 00:05:42]} 8. Qxc4 {[%clk
01:33:44]} {[%emt 00:00:18]} b5 {[%clk 01:28:24]} {[%emt 00:00:09]} 9. Qc2
{[%clk 01:34:05]} {[%emt 00:00:08]} Bb7 {[%clk 01:28:48]} {[%emt 00:00:06]} 10.
Bd2 {[%clk 01:33:57]} {[%emt 00:00:37]} Be4 {[%clk 01:14:09]} {[%emt 00:15:09]}
11. Qc1 {[%clk 01:33:43]} {[%emt 00:00:44]} Qc8 {[%clk 01:06:42]} {[%emt
00:07:58]} 12. b4 {[%clk 01:05:51]} {[%emt 00:28:22]} a5 {[%clk 01:02:48]}
{[%emt 00:04:24]} 13. bxa5 {[%clk 01:02:49]} {[%emt 00:03:33]} b4 {[%clk
01:02:59]} {[%emt 00:00:18]} 14. Bf4 {[%clk 00:57:30]} {[%emt 00:05:49]} Rxa5
{[%clk 00:56:01]} {[%emt 00:07:28]} 15. Nbd2 {[%clk 00:54:59]} {[%emt
00:03:01]} Bd5 {[%clk 00:55:12]} {[%emt 00:01:18]} 16. Qb2 {[%clk 00:45:00]}
{[%emt 00:10:29]} Qa6 {[%clk 00:46:58]} {[%emt 00:08:44]} 17. Nb3 {[%clk
00:39:02]} {[%emt 00:06:29]} Ra3 {[%clk 00:46:59]} {[%emt 00:00:29]} 18. Bxc7
{[%clk 00:24:10]} {[%emt 00:15:22]} Nbd7 {[%clk 00:46:10]} {[%emt 00:01:18]} 19.
Rfc1 {[%clk 00:23:38]} {[%emt 00:01:03]} Ra8 {[%clk 00:46:02]} {[%emt
00:00:38]} 20. Ne5 {[%clk 00:22:35]} {[%emt 00:01:33]} Bxg2 {[%clk 00:41:57]}
{[%emt 00:04:36]} 21. Kxg2 {[%clk 00:15:37]} {[%emt 00:10:07]} Rxa2 {[%clk
00:41:04]} 22. Rxa2 {[%clk 00:15:21]} Qxa2 {[%clk 00:41:31]} 23. Qxa2 {[%clk
00:15:09]} {[%emt 00:00:14]} Rxa2 {[%clk 00:41:59]} {[%emt 00:00:02]} 24. Ba5
{[%clk 00:11:27]} {[%emt 00:04:12]} Ra3 {[%clk 00:36:45]} {[%emt 00:05:44]} 25.
Nxd7 {[%clk 00:07:35]} {[%emt 00:04:22]} Nxd7 {[%clk 00:37:01]} {[%emt
00:00:14]} 26. Rc7 {[%clk 00:07:40]} {[%emt 00:00:25]} Rxb3 {[%clk 00:36:11]}
{[%emt 00:01:20]} 27. Rxd7 {[%clk 00:08:09]} {[%emt 00:00:01]} Bf8 {[%clk
00:25:18]} {[%emt 00:11:24]} 28. Rd8 {[%clk 00:07:28]} {[%emt 00:01:10]} g6
{[%clk 00:24:22]} {[%emt 00:01:26]} 29. Bc7 {[%clk 00:07:23]} {[%emt 00:00:35]}
Kg7 {[%clk 00:24:07]} {[%emt 00:00:45]} 30. Be5+ {[%clk 00:07:48]} {[%emt
00:00:05]} f6 {[%clk 00:24:33]} {[%emt 00:00:04]} 31. Rd7+ {[%clk 00:08:03]}
{[%emt 00:00:15]} Kg8 {[%clk 00:24:12]} {[%emt 00:00:50]} 32. Bxf6 {[%clk
00:08:28]} {[%emt 00:00:06]} Rb1 {[%clk 00:24:36]} {[%emt 00:00:07]} 33. Rb7
{[%clk 00:08:04]} {[%emt 00:00:53]} b3 {[%clk 00:24:41]} {[%emt 00:00:25]} 34.
e4 {[%clk 00:04:33]} {[%emt 00:04:01]} b2 {[%clk 00:20:10]} {[%emt 00:05:01]}
35. d5 {[%clk 00:01:07]} {[%emt 00:03:56]} exd5 {[%clk 00:20:39]} 36. exd5
{[%clk 00:00:40]} {[%emt 00:00:57]} Rd1 {[%clk 00:20:24]} {[%emt 00:00:45]} 37.
Bxb2 {[%clk 00:01:06]} {[%emt 00:00:05]} Rxd5 {[%clk 00:20:46]} {[%emt
00:00:07]} 38. Rb8 {[%clk 00:01:12]} {[%emt 00:00:24]} Kf7 {[%clk 00:20:42]}
{[%emt 00:00:33]} 39. Rb7+ {[%clk 00:01:38]} {[%emt 00:00:05]} Kg8 {[%clk
00:20:44]} {[%emt 00:00:28]} 40. Bc1 {[%clk 00:01:17]} {[%emt 00:00:51]} Bg7
{[%clk 00:19:27]} {[%emt 00:01:47]} 41. Be3 {[%clk 00:00:58]} {[%emt 00:00:50]}
h5 {[%clk 00:16:45]} {[%emt 00:03:10]} 42. h3 {[%clk 00:28:59]} {[%emt
00:02:29]} Rf5 {[%clk 00:47:08]} {[%emt 00:00:08]} 43. Rd7 {[%clk 00:28:33]}
{[%emt 00:00:56]} Rb5 {[%clk 00:47:26]} {[%emt 00:00:12]} 44. g4 {[%clk
00:28:41]} {[%emt 00:00:22]} hxg4 {[%clk 00:47:48]} {[%emt 00:00:08]} 45. hxg4
{[%clk 00:29:10]} {[%emt 00:00:01]} Rb4 {[%clk 00:47:46]} {[%emt 00:00:31]} 46.
Kg3 {[%clk 00:29:16]} {[%emt 00:00:25]} Rb5 {[%clk 00:47:30]} {[%emt 00:00:46]}
47. Kf3 {[%clk 00:27:55]} {[%emt 00:01:51]} Ra5 {[%clk 00:47:36]} {[%emt
00:00:24]} 48. Ke4 {[%clk 00:27:46]} {[%emt 00:00:39]} Ra4+ {[%clk 00:47:04]}
{[%emt 00:01:02]} 49. Kf3 {[%clk 00:28:08]} {[%emt 00:00:08]} Ra5 {[%clk
00:47:21]} {[%emt 00:00:13]} 50. Kg2 {[%clk 00:27:59]} {[%emt 00:00:38]} Ra4
{[%clk 00:47:31]} {[%emt 00:00:21]} 51. Kg3 {[%clk 00:27:59]} {[%emt 00:00:30]}
Rb4 {[%clk 00:47:05]} {[%emt 00:00:56]} 52. f4 {[%clk 00:28:17]} {[%emt
00:00:12]} Rb3 {[%clk 00:47:26]} {[%emt 00:00:09]} 53. Kf3 {[%clk 00:28:39]}
{[%emt 00:00:08]} Rb4 {[%clk 00:47:39]} {[%emt 00:00:16]} 54. Re7 {[%clk
00:27:29]} {[%emt 00:01:41]} Ra4 {[%clk 00:47:55]} {[%emt 00:00:14]} 55. Re6
{[%clk 00:26:58]} {[%emt 00:01:01]} Kf7 {[%clk 00:48:12]} {[%emt 00:00:13]} 56.
Rb6 {[%clk 00:26:53]} {[%emt 00:00:34]} Rc4 {[%clk 00:47:04]} {[%emt 00:01:39]}
57. Ke2 {[%clk 00:27:15]} {[%emt 00:00:08]} Ra4 {[%clk 00:47:18]} {[%emt
00:00:16]} 58. Rb7+ {[%clk 00:27:17]} {[%emt 00:00:28]} Kg8 {[%clk 00:47:42]}
{[%emt 00:00:06]} 59. Kf3 {[%clk 00:26:52]} {[%emt 00:00:55]} Rc4 {[%clk
00:48:01]} {[%emt 00:00:11]} 60. Bd2 {[%clk 00:26:20]} {[%emt 00:01:02]} Ra4
{[%clk 00:46:50]} {[%emt 00:01:41]} 61. Bb4 {[%clk 00:25:53]} {[%emt 00:00:57]}
Bf8 {[%clk 00:44:44]} {[%emt 00:02:36]} 62. Be1 {[%clk 00:21:28]} {[%emt
00:04:55]} Bd6 {[%clk 00:43:31]} {[%emt 00:01:42]} 63. Bd2 {[%clk 00:21:34]}
{[%emt 00:00:24]} Bf8 {[%clk 00:43:52]} {[%emt 00:00:09]} 64. Be3 {[%clk
00:21:54]} {[%emt 00:00:11]} Bg7 {[%clk 00:43:07]} {[%emt 00:01:15]} 65. Bc5
{[%clk 00:22:12]} {[%emt 00:00:11]} Rc4 {[%clk 00:43:13]} {[%emt 00:00:25]} 66.
Bd6 {[%clk 00:21:08]} {[%emt 00:01:33]} Ra4 {[%clk 00:31:57]} {[%emt 00:11:46]}
67. Rc7 {[%clk 00:19:45]} {[%emt 00:01:54]} Rd4 {[%clk 00:28:47]} {[%emt
00:03:40]} 68. Rxg7+ {[%clk 00:19:54]} {[%emt 00:00:21]} 1-0

[Event "Masters Tournament (MTO)"]
[Site "Biel, Switzerland"]
[Date "2026.07.14"]
[Round "2.15"]
[White "Xu, Chang(Cq)"]
[Black "Dong, Hongfu"]
[Result "0-1"]
[TimeControl "100+30+30sec/move"]
[WhiteTitle "-"]
[BlackTitle "-"]
[WhiteFideId "8641757"]
[BlackFideId "8626960"]
[WhiteElo "2125"]
[BlackElo "2353"]

1. e4 {[%clk 01:40:52]} {[%emt 00:00:04]} c5 {[%clk 01:40:52]} {[%emt
00:00:10]} 2. Nf3 {[%clk 01:40:53]} {[%emt 00:00:28]} d6 {[%clk 01:41:15]}
{[%emt 00:00:07]} 3. d4 {[%clk 01:41:15]} {[%emt 00:00:08]} cxd4 {[%clk
01:41:41]} {[%emt 00:00:05]} 4. Nxd4 {[%clk 01:41:37]} {[%emt 00:00:08]} Nf6
{[%clk 01:42:07]} {[%emt 00:00:03]} 5. Nc3 {[%clk 01:41:56]} {[%emt 00:00:11]}
a6 {[%clk 01:42:34]} {[%emt 00:00:04]} 6. Bg5 {[%clk 01:42:16]} {[%emt
00:00:09]} Nbd7 {[%clk 01:42:56]} {[%emt 00:00:09]} 7. Qe2 {[%clk 01:42:38]}
{[%emt 00:00:07]} h6 {[%clk 01:43:21]} {[%emt 00:00:05]} 8. Bh4 {[%clk
01:39:25]} {[%emt 00:03:43]} g6 {[%clk 01:43:42]} {[%emt 00:00:09]} 9. O-O-O
{[%clk 01:38:25]} {[%emt 00:01:30]} e5 {[%clk 01:43:56]} {[%emt 00:00:17]} 10.
Nb3 {[%clk 01:37:24]} {[%emt 00:01:30]} Be7 {[%clk 01:43:58]} {[%emt 00:00:26]}
11. f3 {[%clk 01:33:07]} {[%emt 00:04:51]} b5 {[%clk 01:43:28]} {[%emt
00:01:00]} 12. Bf2 {[%clk 01:19:16]} {[%emt 00:14:21]} Bb7 {[%clk 01:37:32]}
{[%emt 00:06:27]} 13. a3 {[%clk 01:09:21]} {[%emt 00:10:25]} Rc8 {[%clk
01:36:46]} {[%emt 00:01:13]} 14. Qd2 {[%clk 01:09:38]} {[%emt 00:00:15]} Qc7
{[%clk 01:25:57]} {[%emt 00:11:19]} 15. Kb1 {[%clk 01:06:25]} {[%emt 00:03:43]}
Bc6 {[%clk 01:25:32]} {[%emt 00:00:56]} 16. g4 {[%clk 01:02:02]} {[%emt
00:04:52]} Nb6 {[%clk 00:58:59]} {[%emt 00:27:04]} 17. Na5 {[%clk 00:57:29]}
{[%emt 00:05:02]} Bd7 {[%clk 00:58:47]} {[%emt 00:00:40]} 18. Be3 {[%clk
00:56:17]} {[%emt 00:01:44]} Na4 {[%clk 00:36:19]} {[%emt 00:22:59]} 19. Nxa4
{[%clk 00:54:57]} {[%emt 00:01:50]} bxa4 {[%clk 00:35:53]} {[%emt 00:00:56]} 20.
Nc4 {[%clk 00:46:58]} {[%emt 00:08:28]} Be6 {[%clk 00:36:18]} {[%emt 00:00:06]}
21. Nb6 {[%clk 00:46:54]} {[%emt 00:00:34]} Rb8 {[%clk 00:36:44]} {[%emt
00:00:03]} 22. Nd5 {[%clk 00:44:05]} {[%emt 00:03:19]} Bxd5 {[%clk 00:37:05]}
{[%emt 00:00:10]} 23. exd5 {[%clk 00:44:20]} {[%emt 00:00:14]} a5 {[%clk
00:37:22]} {[%emt 00:00:13]} 24. Ka1 {[%clk 00:37:20]} {[%emt 00:07:30]} Qb7
{[%clk 00:34:48]} {[%emt 00:03:05]} 25. c4 {[%clk 00:36:40]} {[%emt 00:01:09]}
Nd7 {[%clk 00:35:01]} {[%emt 00:00:17]} 26. Qc3 {[%clk 00:12:04]} {[%emt
00:25:06]} Bg5 {[%clk 00:30:48]} {[%emt 00:04:43]} 27. Bf2 {[%clk 00:09:49]}
{[%emt 00:02:45]} Qc7 {[%clk 00:29:37]} {[%emt 00:01:41]} 28. Bd3 {[%clk
00:05:02]} {[%emt 00:05:16]} Rb3 {[%clk 00:28:48]} {[%emt 00:01:20]} 29. Qc2
{[%clk 00:05:26]} {[%emt 00:00:06]} Nc5 {[%clk 00:29:09]} {[%emt 00:00:09]} 30.
Bxc5 {[%clk 00:04:57]} {[%emt 00:00:59]} Qxc5 {[%clk 00:29:32]} {[%emt
00:00:07]} 31. Ka2 {[%clk 00:02:26]} {[%emt 00:03:01]} Ke7 {[%clk 00:29:27]}
{[%emt 00:00:34]} 32. Rb1 {[%clk 00:01:25]} {[%emt 00:01:32]} Rhb8 {[%clk
00:29:43]} {[%emt 00:00:14]} 33. h4 {[%clk 00:01:35]} {[%emt 00:00:20]} Be3
{[%clk 00:30:04]} {[%emt 00:00:09]} 34. Rh2 {[%clk 00:01:36]} {[%emt 00:00:29]}
Bd4 {[%clk 00:30:25]} {[%emt 00:00:10]} 35. Qd1 {[%clk 00:01:32]} {[%emt
00:00:33]} Bxb2 {[%clk 00:30:44]} {[%emt 00:00:11]} 0-1

[Event "Masters Tournament (MTO)"]
[Site "Biel, Switzerland"]
[Date "2026.07.14"]
[Round "2.16"]
[White "Haimovich, Tal"]
[Black "Angst, Oliver"]
[Result "1-0"]
[TimeControl "100+30+30sec/move"]
[WhiteTitle "-"]
[BlackTitle "-"]
[WhiteFideId "2801698"]
[BlackFideId "1334069"]
[WhiteElo "2310"]
[BlackElo "2121"]

1. d4 {[%clk 01:40:56]} {[%emt 00:00:02]} d5 {[%clk 01:40:27]} {[%emt
00:00:33]} 2. c4 {[%clk 01:41:18]} {[%emt 00:00:08]} c6 {[%clk 01:40:50]}
{[%emt 00:00:07]} 3. Nf3 {[%clk 01:41:40]} {[%emt 00:00:09]} Nf6 {[%clk
01:41:15]} {[%emt 00:00:05]} 4. Nc3 {[%clk 01:42:04]} {[%emt 00:00:06]} e6
{[%clk 01:41:10]} {[%emt 00:00:35]} 5. Bg5 {[%clk 01:42:26]} {[%emt 00:00:07]}
Nbd7 {[%clk 01:41:26]} {[%emt 00:00:14]} 6. e3 {[%clk 01:42:38]} {[%emt
00:00:19]} Qa5 {[%clk 01:41:34]} {[%emt 00:00:22]} 7. Nd2 {[%clk 01:42:47]}
{[%emt 00:00:20]} dxc4 {[%clk 01:41:50]} {[%emt 00:00:14]} 8. Bxf6 {[%clk
01:42:56]} {[%emt 00:00:22]} Nxf6 {[%clk 01:42:14]} {[%emt 00:00:06]} 9. Nxc4
{[%clk 01:43:18]} {[%emt 00:00:09]} Qc7 {[%clk 01:42:38]} {[%emt 00:00:05]} 10.
g3 {[%clk 01:40:36]} {[%emt 00:03:12]} Be7 {[%clk 01:39:46]} {[%emt 00:03:21]}
11. Bg2 {[%clk 01:40:18]} {[%emt 00:00:48]} O-O {[%clk 01:40:05]} {[%emt
00:00:11]} 12. O-O {[%clk 01:40:01]} {[%emt 00:00:49]} Rd8 {[%clk 01:40:01]}
{[%emt 00:00:35]} 13. Rc1 {[%clk 01:29:20]} {[%emt 00:11:11]} Bd7 {[%clk
01:37:12]} {[%emt 00:03:19]} 14. Ne5 {[%clk 01:25:12]} {[%emt 00:04:38]} Be8
{[%clk 01:34:57]} {[%emt 00:02:44]} 15. Nd3 {[%clk 01:22:33]} {[%emt 00:03:10]}
a5 {[%clk 01:21:21]} {[%emt 00:14:06]} 16. Qc2 {[%clk 01:09:21]} {[%emt
00:13:42]} Nd5 {[%clk 01:06:16]} {[%emt 00:15:34]} 17. a3 {[%clk 01:08:11]}
{[%emt 00:01:41]} Nxc3 {[%clk 01:05:29]} {[%emt 00:01:17]} 18. Qxc3 {[%clk
01:08:36]} {[%emt 00:00:05]} a4 {[%clk 01:05:50]} {[%emt 00:00:09]} 19. Rfd1
{[%clk 00:59:23]} {[%emt 00:09:43]} Qa5 {[%clk 00:53:26]} {[%emt 00:12:53]} 20.
Qc2 {[%clk 00:56:29]} {[%emt 00:03:24]} f6 {[%clk 00:25:30]} {[%emt 00:28:25]}
21. Be4 {[%clk 00:48:24]} {[%emt 00:08:36]} g6 {[%clk 00:20:54]} {[%emt
00:05:07]} 22. f4 {[%clk 00:32:50]} {[%emt 00:16:04]} Bf7 {[%clk 00:19:03]}
{[%emt 00:02:20]} 23. Qe2 {[%clk 00:32:00]} {[%emt 00:01:20]} Kg7 {[%clk
00:18:36]} {[%emt 00:00:57]} 24. Nc5 {[%clk 00:29:29]} {[%emt 00:03:01]} Qb6
{[%clk 00:15:49]} {[%emt 00:03:17]} 25. Rf1 {[%clk 00:21:22]} {[%emt 00:08:38]}
Ra5 {[%clk 00:14:38]} {[%emt 00:01:40]} 26. Nd3 {[%clk 00:21:29]} {[%emt
00:00:24]} c5 {[%clk 00:13:09]} {[%emt 00:01:59]} 27. dxc5 {[%clk 00:19:23]}
{[%emt 00:02:35]} Bxc5 {[%clk 00:13:28]} {[%emt 00:00:11]} 28. Nxc5 {[%clk
00:19:35]} {[%emt 00:00:18]} Rxc5 {[%clk 00:13:49]} {[%emt 00:00:08]} 29. Rxc5
{[%clk 00:19:19]} {[%emt 00:00:48]} Qxc5 {[%clk 00:14:14]} {[%emt 00:00:05]} 30.
Bxb7 {[%clk 00:19:08]} {[%emt 00:00:41]} Rb8 {[%clk 00:13:07]} {[%emt
00:01:36]} 31. Ba6 {[%clk 00:15:57]} {[%emt 00:03:41]} Rb3 {[%clk 00:12:30]}
{[%emt 00:01:06]} 32. Bd3 {[%clk 00:13:48]} {[%emt 00:02:40]} Qb6 {[%clk
00:09:57]} {[%emt 00:03:03]} 33. Rf2 {[%clk 00:11:43]} {[%emt 00:02:35]} Be8
{[%clk 00:06:20]} {[%emt 00:04:07]} 34. Qd2 {[%clk 00:07:55]} {[%emt 00:04:18]}
Bc6 {[%clk 00:03:43]} {[%emt 00:03:07]} 35. Re2 {[%clk 00:05:00]} {[%emt
00:03:26]} Bf3 {[%clk 00:02:11]} {[%emt 00:02:01]} 36. Bc4 {[%clk 00:04:43]}
{[%emt 00:00:48]} Bxe2 {[%clk 00:00:52]} {[%emt 00:01:49]} 37. Bxb3 {[%clk
00:05:11]} {[%emt 00:00:02]} Bb5 {[%clk 00:00:35]} {[%emt 00:00:47]} 38. Bd1
{[%clk 00:04:40]} {[%emt 00:01:01]} Bc6 {[%clk 00:00:35]} {[%emt 00:00:30]} 39.
Qd4 {[%clk 00:02:41]} {[%emt 00:02:28]} Qb7 {[%clk 00:00:33]} {[%emt 00:00:32]}
40. Bc2 {[%clk 00:02:00]} {[%emt 00:01:11]} Qc7 {[%clk 00:00:31]} {[%emt
00:00:32]} 41. Kf2 {[%clk 00:26:41]} {[%emt 00:05:49]} Qb7 {[%clk 00:17:12]}
{[%emt 00:13:49]} 42. Ke1 {[%clk 00:22:42]} {[%emt 00:04:30]} Bb5 {[%clk
00:10:21]} {[%emt 00:07:19]} 43. e4 {[%clk 00:21:53]} {[%emt 00:01:20]} Qc6
{[%clk 00:09:32]} {[%emt 00:01:19]} 44. Kd2 {[%clk 00:18:20]} {[%emt 00:04:04]}
Bc4 {[%clk 00:08:14]} {[%emt 00:01:47]} 45. Qa7+ {[%clk 00:17:21]} {[%emt
00:01:29]} Kh6 {[%clk 00:08:03]} {[%emt 00:00:41]} 46. Qe7 {[%clk 00:12:49]}
{[%emt 00:05:02]} Bb3 {[%clk 00:06:15]} {[%emt 00:02:18]} 47. Bd3 {[%clk
00:12:44]} {[%emt 00:00:35]} Bc4 {[%clk 00:05:01]} {[%emt 00:01:44]} 48. Qf8+
{[%clk 00:12:55]} {[%emt 00:00:19]} Kh5 {[%clk 00:05:16]} {[%emt 00:00:16]} 49.
Qxf6 {[%clk 00:13:15]} {[%emt 00:00:09]} Kg4 {[%clk 00:04:53]} {[%emt
00:00:53]} 50. Qc3 {[%clk 00:09:18]} {[%emt 00:04:28]} 1-0